fUSD/lending_fUSD_20240331
["ID","MTS","AMOUNT","RATE_DAILY","PERIOD"]
[321074295,1711877433308,-162.23,0.00038027,15]
[321074296,1711877433318,-609.5,0.0003807,2]
[321074297,1711877433327,-904.21,0.00038088,2]
[321074298,1711877433336,-904.21,0.00038098,2]
[321074299,1711877433345,-904.21,0.00038108,2]
[321074300,1711877433355,-904.21,0.00038118,2]
[321074301,1711877433364,-191.4,0.00038121,7]
[321074302,1711877433373,-904.21,0.00038128,2]
[321074303,1711877433383,-904.21,0.00038139,2]
[321074304,1711877433393,-904.21,0.00038149,2]
[321074305,1711877433402,-904.21,0.00038159,2]
[321074306,1711877433411,-800.0,0.00038164,2]
[321074307,1711877433421,-904.21,0.00038169,2]
[321074308,1711877433432,-904.21,0.00038179,2]
[321074309,1711877433441,-904.21,0.00038189,2]
[321074311,1711877433450,-904.21,0.00038199,2]
[321074313,1711877433460,-234.4,0.00038208,2]
[321074315,1711877433469,-904.21,0.00038209,2]
[321074317,1711877433478,-904.21,0.00038219,2]
[321074319,1711877433487,-8700.7,0.00038223,2]
[321074321,1711877433496,-154.28950349,0.00038226,7]
[321074322,1711877433505,-904.21,0.00038229,2]
[321074323,1711877433514,-904.21,0.00038239,2]
[321074324,1711877433523,-904.21,0.00038249,2]
[321074325,1711877433533,-904.21,0.00038259,2]
[321074326,1711877433542,-904.21,0.00038269,2]
[321074327,1711877433552,-904.21,0.00038279,2]
[321074328,1711877433561,-150.25,0.00038338,2]
[321074329,1711877433572,-156.41895585,0.00038373,7]
[321074330,1711877433582,-157.31336065,0.00038483,7]
[321074331,1711877433591,-432.02,0.00038655,2]
[321074332,1711877433600,-162.84838963,0.00038875,2]
[321074333,1711877433609,-200.0,0.0003891,2]
[321074334,1711877433619,-2808.41317268,0.00038949,4]
[321074335,1711877433636,-952.61212676,0.0003895,4]
[321074336,1711877433650,-400.0,0.00039,3]
[321074337,1711877433659,-162.84838963,0.00039887,2]
[321074338,1711877433669,-150.0,0.000404,6]
[321074339,1711877433680,-1392.44,0.00040577,2]
[321074340,1711877433689,-1491.2938486,0.00040656,2]
[321074341,1711877433699,-367.989881,0.000408,2]
[321074342,1711877433709,-590.30945798,0.00040898,2]
[321074343,1711877433719,-16085.4104,0.000409,2]
[321074344,1711877433729,-1000.0,0.000409,2]
[321074345,1711877433739,-1908.2011,0.000409,2]
[321074346,1711877433749,-14338.6762,0.000409,2]
[321074347,1711877433758,-2097.52643414,0.000409,2]
[321074348,1711877433792,-20757.52746586,0.000409,2]
[321074349,1711877433802,-1000.0,0.000409,2]
[321074350,1711877433812,-392.1619,0.000409,2]
[321074351,1711877433821,-162.84838963,0.000409,2]
[321074352,1711877433831,-1727.96042327,0.000409,15]
[321074353,1711877433840,-5000.0,0.000409,2]
[321074354,1711877433849,-150.0,0.000409,6]
[321074355,1711877433858,-168.85835234,0.000409,2]
[321074356,1711877433868,-153.96272275,0.000409,10]
[321074357,1711877433877,-5448.68884626,0.000409,2]
[321074358,1711877433886,-302.60535856,0.000409,2]
[321074359,1711877433895,-4181.9666101,0.000409,2]
[321074360,1711877433904,-432.02,0.00040919,2]
[321074361,1711877433914,-162.44496167,0.00040944,30]
[321074362,1711877433923,-251.73796416,0.00040986,7]
[321074363,1711877433936,-150.0,0.00040986,7]
[321074364,1711877433945,-150.0,0.00040986,7]
[321074365,1711877433955,-150.75887605,0.00040986,7]
[321074366,1711877433964,-150.0,0.00040986,7]
[321074367,1711877433974,-150.68711393,0.00040986,7]
[321074368,1711877433984,-150.0,0.00040986,7]
[321074369,1711877433993,-5300.0,0.0004099,28]
[321074370,1711877434003,-18538.3804564,0.00040993,2]
[321074371,1711877434012,-3738.5040515,0.00040994,2]
[321074372,1711877434023,-167.03567307,0.00040998,2]
[321074373,1711877434032,-364.33383296,0.00040998,2]
[321074374,1711877434042,-156.51734228,0.00040998,4]
[321074375,1711877434051,-381.44396,0.00040998,7]
[321074376,1711877434061,-282.18138419,0.00040999,4]
[321074377,1711877434070,-87067.84588383,0.00041,3]
[321074378,1711877434087,-6053.77896275,0.00041,3]
[321074381,1711877438508,-308.21454942,0.000409,2]
[321074382,1711877438517,-2881.04861058,0.00041,3]
[321074411,1711877440326,-266.37838161,0.00041,3]
[321074433,1711877443399,-564.87355881,0.00041,3]
[321074434,1711877443455,-5324.5500387,0.00041,3]
[321074435,1711877443468,-508.78047506,0.00041,5]
[321074436,1711877443480,-2178.24926731,0.00041,5]
[321074437,1711877443492,-1948.18110568,0.00041,5]
[321074438,1711877443504,-8221.84250439,0.00041,5]
[321074439,1711877443516,-2812.04615429,0.00041,5]
[321074440,1711877443529,-10459.46159995,0.00041,5]
[321074441,1711877443542,-950.0,0.00041,5]
[321074442,1711877443567,-1890.5574939,0.00041,5]
[321074443,1711877443579,-3517.4139,0.00041,5]
[321074444,1711877443674,-168778.00902655,0.00041,5]
[321074445,1711877443732,-1725.46242003,0.00041,5]
[321074447,1711877446300,-14050.34455917,0.00041,5]
[321074448,1711877446465,-24247.21579604,0.00041,5]
[321074449,1711877446476,-18366.5672216,0.00041,5]
[321074450,1711877551592,-1692.939,0.00032396,2]
[321074451,1711877551613,-339.061,0.00032396,2]
[321074452,1711877605724,-150.0,0.00032296,2]
[321074485,1711878631463,-500.71354731,0.00031573,2]
[321074486,1711878631475,-232.21047775,0.00031573,2]
[321074487,1711878631485,-77.75952225,0.00031672,4]
[321074488,1711878631497,-341.54996243,0.00031672,4]
[321074489,1711878631506,-883.25109425,0.00031673,2]
[321074490,1711878631534,-395.04021601,0.00031673,2]
[321074491,1711878631544,-162.66306295,0.00031673,2]
[321074492,1711878631553,-365.351025,0.00031773,2]
[321074493,1711878631562,-154.5247,0.00032296,2]
[321074494,1711878631571,-965.13297051,0.00032296,4]
[321074495,1711878631580,-350.0,0.00033,3]
[321074496,1711878631590,-400.0,0.00035,3]
[321074497,1711878631599,-444.20514868,0.00035,2]
[321074498,1711878631614,-8254.83485132,0.00035,2]
[321074499,1711878631623,-1279.97749042,0.00036199,4]
[321074500,1711878631633,-228.0,0.000362,3]
[321074501,1711878631643,-387.1,0.00036673,2]
[321074502,1711878631652,-150.99,0.00036822,2]
[321074503,1711878631661,-442.48461443,0.00036898,7]
[321074504,1711878631671,-450.0,0.00037,3]
[321074505,1711878631680,-157.31336065,0.00037015,7]
[321074506,1711878631689,-157.31336065,0.00038059,7]
[321074507,1711878631699,-166.37066929,0.00038127,7]
[321074508,1711878631708,-640.0,0.00038322,2]
[321074509,1711878631717,-156.29,0.00038326,2]
[321074510,1711878631727,-19182.56,0.00038407,2]
[321074511,1711878631736,-304.75,0.00038423,2]
[321074512,1711878631745,-195.33,0.00038448,2]
[321074513,1711878631754,-463.47,0.00038464,2]
[321074514,1711878631764,-150.0,0.00038482,2]
[321074515,1711878631773,-153.71574397,0.00038495,7]
[321074516,1711878631782,-200.0,0.00038508,2]
[321074517,1711878631791,-166.93,0.00038513,15]
[321074518,1711878631800,-154.82760526,0.0003858,7]
[321074519,1711878631809,-162.44496167,0.000386,7]
[321074520,1711878631818,-250.0,0.00038815,2]
[321074521,1711878631828,-360.0,0.0003883,2]
[321074522,1711878631837,-39.63102532,0.0003889,2]
[321074523,1711878631881,-111.24897468,0.0003889,2]
[321074524,1711878631890,-387.1,0.00038936,2]
[321074525,1711878631899,-500.0,0.00039,3]
[321074526,1711878631908,-159.17035134,0.00039746,7]
[321074527,1711878631917,-172.2961365,0.00039773,7]
[321074528,1711878631927,-157.31336065,0.00039792,7]
[321074529,1711878631936,-172.2961365,0.00039869,7]
[321074530,1711878631945,-911.27049372,0.0003999,2]
[321074531,1711878631957,-156.79,0.0003999,2]
[321074532,1711878631972,-32782.0,0.0004,4]
[321074533,1711878631982,-155.0,0.0004,15]
[321074534,1711878631991,-442761.89902507,0.0004,2]
[321074535,1711878632001,-200.0,0.00040671,15]
[321074536,1711878632014,-800.0,0.00040671,15]
[321074537,1711878632024,-500.0,0.00040671,20]
[321074538,1711878632034,-200.0,0.00040671,20]
[321074539,1711878632043,-179.4379442,0.00040899,19]
[321074540,1711878632053,-3609.5262,0.000409,2]
[321074541,1711878632063,-1583.96372134,0.000409,15]
[321074542,1711878632073,-7500.0,0.000409,2]
[321074543,1711878632083,-5013.23306364,0.000409,2]
[321074544,1711878632093,-764.72116274,0.000409,2]
[321074545,1711878632104,-150.0,0.000409,6]
[321074546,1711878632114,-159.18694311,0.000409,10]
[321074547,1711878632123,-153.96272275,0.000409,10]
[321074548,1711878632134,-162.66306295,0.000409,2]
[321074549,1711878632144,-177.20903462,0.000409,2]
[321074550,1711878632153,-249.22058451,0.00040986,7]
[321074551,1711878632163,-150.0,0.00040986,7]
[321074552,1711878632172,-150.0,0.00040986,7]
[321074553,1711878632182,-150.0,0.00040986,7]
[321074554,1711878632191,-150.0,0.00040986,7]
[321074555,1711878632201,-211.22530463,0.0004099,2]
[321074556,1711878632210,-156.79,0.0004099,2]
[321074557,1711878632219,-156.79,0.0004099,2]
[321074558,1711878632229,-156.79,0.0004099,2]
[321074559,1711878632239,-156.79,0.0004099,2]
[321074560,1711878632248,-4880.3310626,0.00040994,2]
[321074561,1711878632257,-984.1818433,0.00040994,2]
[321074562,1711878632268,-364.33383296,0.00040998,2]
[321074563,1711878632277,-172.69101799,0.00040998,2]
[321074564,1711878632287,-9067.52648722,0.00040998,4]
[321074565,1711878632297,-219.16351457,0.00040998,4]
[321074566,1711878632306,-317.86997,0.00040998,7]
[321074567,1711878632315,-213.06700807,0.00040999,4]
[321074568,1711878632324,-223.74978345,0.00040999,2]
[321074569,1711878632337,-263.87370011,0.00040999,2]
[321074570,1711878632347,-111783.85657722,0.00041,3]
[321074571,1711878632356,-785726.96123918,0.00041,5]
[321074572,1711878632368,-748.42002,0.00041,5]
[321074573,1711878632379,-538.88,0.00041,5]
[321074574,1711878632391,-14829.87544267,0.00041,5]
[321074577,1711878637521,-500.0,0.00039999,31]
[321074578,1711878637531,-211.72332506,0.00039999,31]
[321074579,1711878637543,-288.27667494,0.00039999,31]
[321074580,1711878637552,-542.36991896,0.00039999,31]
[321074581,1711878637561,-2045.809275,0.00041,5]
[321074582,1711878637593,-1792.04521374,0.00041,5]
[321074583,1711878637604,-40150.09743002,0.00041,5]
[321074584,1711878637615,-4542.02913399,0.00041,5]
[321074585,1711878637627,-758.36707319,0.00041,5]
[321074586,1711878637790,-19148.08673474,0.00041,5]
[321074609,1711878642886,-340.04491076,0.00040998,2]
[321074610,1711878642896,-643.9353,0.00040999,6]
[321074611,1711878642905,-1839.12953076,0.00041,5]
[321074612,1711878642917,-4481.66003063,0.00041,5]
[321074632,1711878645528,-2390.83654837,0.00041,5]
[321074656,1711878706365,115.77,0.0003001,2]
[321074657,1711878706389,298.54191843,0.0003001,2]
[321074658,1711878706416,65000.0,0.0003001,2]
[321074659,1711878706440,1947.96535942,0.0003001,2]
[321074660,1711878706465,2000.0,0.0003001,2]
[321074661,1711878706489,2000.0,0.0003001,2]
[321074662,1711878706511,2000.0,0.0003001,2]
[321074663,1711878706535,2000.0,0.0003001,2]
[321074664,1711878706559,2000.0,0.0003001,2]
[321074665,1711878706583,2000.0,0.0003001,2]
[321074666,1711878706606,2000.0,0.0003001,2]
[321074667,1711878706628,2000.0,0.0003001,2]
[321074668,1711878706651,2000.0,0.0003001,2]
[321074669,1711878706683,5660147.81272215,0.0003001,2]
[321074670,1711878708469,-150.0,0.00031572,4]
[321074679,1711879030123,-150.0,0.00030625,4]
[321074680,1711879043806,738.73771562,0.00023679,2]
[321074681,1711879046506,948.9259237,0.00029993,2]
[321074682,1711879082568,288.61270118,0.00029993,2]
[321074683,1711879082593,743.5083115,0.00029993,2]
[321074684,1711879082782,1465.71922469,0.00029993,2]
[321074685,1711879086384,1365.08825627,0.00029993,2]
[321074686,1711879088927,291.58831734,0.00029993,2]
[321074687,1711879090572,287.28645962,0.00029993,2]
[321074688,1711879096768,466.41989002,0.00029993,2]
[321074689,1711879098568,379.54223118,0.00029993,2]
[321074690,1711879100383,1365.08825627,0.00029993,2]
[321074691,1711879106882,291.8246616,0.00029993,2]
[321074692,1711879110576,287.28645962,0.00029993,2]
[321074693,1711879118383,1365.08825627,0.00029993,2]
[321074694,1711879130582,287.28645962,0.00029993,2]
[321074695,1711879138414,1365.08825627,0.00029993,2]
[321074696,1711879152582,287.28645962,0.00029993,2]
[321074697,1711879154388,1365.08825627,0.00029993,2]
[321074698,1711879172580,287.28645962,0.00029993,2]
[321074699,1711879178391,1365.08825627,0.00029993,2]
[321074701,1711879196393,1365.08825627,0.00029993,2]
[321074702,1711879196581,169.62614718,0.00029993,2]
[321074705,1711879216396,1365.08825627,0.00029993,2]
[321074706,1711879232391,1365.08825627,0.00029993,2]
[321074707,1711879254391,1365.08825627,0.00029993,2]
[321074708,1711879260283,2455.33346268,0.00029993,2]
[321074709,1711879268204,356.32506237,0.00029993,2]
[321074710,1711879270419,213.13419132,0.00029993,2]
[321074711,1711879270446,1151.95406495,0.00029993,2]
[321074712,1711879278239,1976.42784145,0.00029993,2]
[321074713,1711879290421,1146.70291185,0.00029993,2]
[321074714,1711879309979,131959.26090301,0.00029993,2]
[321074715,1711879377349,300.22579248,0.00029993,2]
[321074716,1711879382652,949.37404731,0.00028493,2]
[321074717,1711879400575,326.01948839,0.00028493,2]
[321074718,1711879407673,155.20180341,0.00029993,2]
[321074719,1711879423072,318.14797163,0.00028493,2]
[321074720,1711879429616,172.95291002,0.00028493,2]
[321074721,1711879433832,1030.29843897,0.0002137,2]
[321074722,1711879439163,367.84056538,0.00028493,2]
[321074726,1711879535054,155.71935355,0.00028493,2]
[321074727,1711879547000,-419.30948468,0.00030561,4]
[321074728,1711879547021,-639.85,0.00030562,4]
[321074729,1711879547043,-3199.25,0.00030562,4]
[321074730,1711879547064,-3199.25,0.00030562,4]
[321074731,1711879547089,-2779.94051532,0.00030562,4]
[321074732,1711879550997,155.0,0.00028493,2]
[321074733,1711879551982,920935.49154781,0.00028493,2]
[321074734,1711879558575,509.21,0.0003,2]
[321074735,1711879569993,-254.50632914,0.00031572,10]
[321074736,1711879570027,241142.31743907,0.00028493,2]
[321074744,1711879700536,224.20800371,0.00024,2]
[321074745,1711879705519,-163.56,0.00030564,2]
[321074746,1711879705542,-365.26167564,0.00030577,4]
[321074747,1711879705563,-260.23749187,0.00030625,4]
[321074748,1711879705585,-298.57199912,0.00031572,2]
[321074749,1711879705607,-369.44005287,0.00031572,4]
[321074750,1711879705629,-295.80086523,0.00031572,4]
[321074751,1711879705650,-942.8907183,0.00031572,4]
[321074752,1711879705673,-868.91306343,0.00031572,4]
[321074753,1711879705696,-350.0,0.00033,3]
[321074754,1711879705718,-419.30948468,0.00034999,4]
[321074755,1711879705938,-400.0,0.00035,3]
[321074756,1711879705960,-11112.61,0.00035,2]
[321074757,1711879705983,-499.99,0.00035,2]
[321074758,1711879706004,-150.99,0.00035,2]
[321074759,1711879706026,-200.0,0.00035,2]
[321074760,1711879706048,-1279.97749042,0.00035,4]
[321074761,1711879718501,223.74712091,0.00024,2]
[321074762,1711879737026,681.07167627,0.0003,4]
[321074763,1711879747979,851.6036423,0.00033875,4]
[321074768,1711879788194,266.02471896,0.00029,2]
[321074769,1711879788220,1309.62110731,0.00029,2]
[321074770,1711879816229,-170.83,0.00030195,2]
[321074771,1711879816252,-150.0,0.00033875,2]
[321074772,1711879816274,-150.0,0.00033875,2]
[321074773,1711879816297,-150.0,0.00033875,2]
[321074774,1711879816318,-150.0,0.00033875,2]
[321074775,1711879816544,-232.53720516,0.00033875,2]
[321074776,1711879816566,-419.30948468,0.00035299,4]
[321074777,1711879816588,-474.0,0.000353,3]
[321074778,1711879816611,-234.87423799,0.00035688,2]
[321074779,1711879816634,-409.25,0.00035789,2]
[321074780,1711879816655,-610.58182639,0.00036,2]
[321074781,1711879816677,-450.0,0.00037,3]
[321074782,1711879816699,-150.0,0.00037525,2]
[321074783,1711879816722,-500.0,0.00037587,2]
[321074784,1711879816743,-544.21,0.0003759,2]
[321074785,1711879816765,-250.0,0.00037597,2]
[321074786,1711879816787,-509.26,0.00037621,2]
[321074787,1711879816810,-502.41052785,0.00037639,4]
[321074788,1711879816832,-605.97477837,0.00037639,4]
[321074789,1711879816854,-1046.82481633,0.0003764,4]
[321074790,1711879816876,-3585.12,0.00037641,2]
[321074791,1711879816899,-11704.81712323,0.00037641,2]
[321074800,1711879831659,-1123.48233042,0.00037641,2]
[321074802,1711879831713,-11061.70054635,0.00037641,2]
[321074803,1711879831724,-1773.14,0.00037686,2]
[321074804,1711879831734,-1206.07,0.00037686,2]
[321074805,1711879831744,-162.77,0.00037697,2]
[321074806,1711879831754,-500.0,0.00037714,2]
[321074807,1711879831764,-7201.6,0.00037718,2]
[321074808,1711879831773,-500.0,0.00037739,2]
[321074809,1711879831784,-9733.69,0.00037749,2]
[321074810,1711879831795,-4855.51406537,0.00037773,2]
[321074811,1711879831807,-514.33101265,0.00037773,2]
[321074812,1711879831819,-8154.5833851,0.00037773,2]
[321074813,1711879831830,-396.74038259,0.00037773,2]
[321074814,1711879831854,-932.24484287,0.00037773,2]
[321074815,1711879831866,-530.38881895,0.00037773,2]
[321074816,1711879831878,-149.19749247,0.00037773,2]
[321074817,1711879831887,-438.6828889,0.00037797,2]
[321074818,1711879831898,-61.3171111,0.00037797,2]
[321074819,1711879831907,-6728.15,0.00037802,2]
[321074820,1711879831917,-249.9491637,0.00037839,4]
[321074821,1711879831926,-1133.38,0.0003787,2]
[321074822,1711879831935,-512.0,0.00037966,2]
[321074823,1711879831944,-156.59,0.00037974,2]
[321074824,1711879831954,-200.0,0.00037981,2]
[321074825,1711879831963,-152.59,0.00038027,15]
[321074826,1711879831972,-409.25,0.00038052,2]
[321074827,1711879831981,-156.59,0.00038084,2]
[321074828,1711879831990,-156.59,0.00038194,2]
[321074829,1711879831999,-769.40841776,0.000382,2]
[321074830,1711879832008,-319.45413673,0.00038221,4]
[321074831,1711879832018,-405.43595883,0.00038221,4]
[321074832,1711879832027,-191.72920037,0.00038221,4]
[321074833,1711879832036,-4023.88161196,0.00038221,4]
[321074834,1711879832045,-156.31222891,0.00038221,4]
[321074835,1711879832054,-156.88396311,0.00038222,4]
[321074836,1711879832063,-1377.44,0.00038289,2]
[321074837,1711879832072,-425.77,0.00038295,2]
[321074838,1711879832081,-156.59,0.00038304,2]
[321074839,1711879832090,-169.21,0.00038315,2]
[321074840,1711879832099,-156.59,0.00038414,2]
[321074841,1711879832108,-150.88,0.00038519,2]
[321074842,1711879832117,-156.59,0.00038524,2]
[321074843,1711879832127,-156.59,0.00038634,2]
[321074844,1711879832136,-156.59,0.00038744,2]
[321074845,1711879832145,-156.59,0.00038854,2]
[321074846,1711879832154,-156.59,0.00038963,2]
[321074847,1711879832163,-166.39505918,0.00038966,7]
[321074848,1711879832173,-500.0,0.00039,3]
[321074849,1711879832182,-215.54,0.00039045,2]
[321074850,1711879832192,-156.59,0.00039073,2]
[321074851,1711879832201,-156.59,0.00039183,2]
[321074852,1711879832210,-153.71574397,0.00039216,7]
[321074853,1711879832220,-152.0,0.00039248,3]
[321074854,1711879832229,-156.59,0.00039293,2]
[321074855,1711879832238,-984.68,0.00039321,2]
[321074856,1711879832247,-620.36098599,0.00039331,2]
[321074857,1711879832259,-364.31901401,0.00039331,2]
[321074858,1711879832269,-984.68,0.00039341,2]
[321074859,1711879832278,-518.57190107,0.00039352,2]
[321074860,1711879832294,-466.10809893,0.00039352,2]
[321074861,1711879832303,-29.37469818,0.00039362,2]
[321074862,1711879832315,-565.21347103,0.00039362,2]
[321074863,1711879832621,-390.09183079,0.00039362,2]
[321074864,1711879832631,-984.68,0.00039372,2]
[321074865,1711879832642,-984.68,0.00039383,2]
[321074866,1711879832652,-984.68,0.00039393,2]
[321074867,1711879832662,-156.59,0.00039403,2]
[321074868,1711879832673,-984.68,0.00039403,2]
[321074869,1711879832683,-984.68,0.00039414,2]
[321074870,1711879832693,-984.68,0.00039424,2]
[321074871,1711879832703,-984.68,0.00039435,2]
[321074872,1711879832714,-984.68,0.00039445,2]
[321074873,1711879832724,-984.68,0.00039455,2]
[321074874,1711879832734,-984.68,0.00039466,2]
[321074875,1711879832744,-984.68,0.00039476,2]
[321074876,1711879832754,-984.68,0.00039486,2]
[321074877,1711879832764,-984.68,0.00039497,2]
[321074878,1711879832774,-984.68,0.00039507,2]
[321074879,1711879832785,-156.59,0.00039513,2]
[321074880,1711879832795,-984.68,0.00039517,2]
[321074881,1711879832804,-156.59,0.00039623,2]
[321074882,1711879832813,-156.59,0.00039733,2]
[321074883,1711879832823,-1484.21930328,0.0003978,2]
[321074889,1711879837701,-718.79311234,0.00037974,2]
[321074894,1711879838229,-785.92464769,0.00037974,2]
[321074895,1711879838240,-669.42707453,0.00037974,2]
[321074897,1711879838255,-872.14516544,0.00037974,2]
[321074899,1711879838264,-2986.8856222,0.0003978,2]
[321074900,1711879838276,-5432.77476992,0.0003978,2]
[321074901,1711879838287,-107.5454046,0.0003978,2]
[321074902,1711879838296,-1316.053374,0.000398,2]
[321074903,1711879838305,-156.59,0.00039843,2]
[321074904,1711879838314,-44.29232279,0.00039878,4]
[321074905,1711879838326,-375.01716189,0.00039878,4]
[321074906,1711879838336,-171.37443544,0.00039879,31]
[321074907,1711879838348,-5166.27831791,0.0003988,2]
[321074911,1711879839759,-1843.21239609,0.0003988,2]
[321074912,1711879839774,-3705.49492994,0.0003988,2]
[321074913,1711879839869,-3348.16054024,0.0003988,2]
[321074914,1711879839882,-1810.70511658,0.0003988,2]
[321074915,1711879839979,-1914.41247,0.0003988,2]
[321074916,1711879840037,-155485.7091179,0.0003988,2]
[321074917,1711879840050,-343.4754,0.000399,3]
[321074918,1711879840064,-159.1869431,0.00039908,9]
[321074919,1711879840076,-156.59,0.00039953,2]
[321074920,1711879840088,-488.0,0.00039963,2]
[321074921,1711879840101,-155.0,0.0004,15]
[321074922,1711879840114,-2032.0,0.0004,2]
[321074923,1711879840127,-1226.0,0.00040009,2]
[321074924,1711879840138,-538.688,0.00040009,2]
[321074925,1711879840147,-1254.0,0.00040009,2]
[321074926,1711879840158,-609.591,0.00040009,2]
[321074927,1711879840170,-281.324,0.00040009,2]
[321074928,1711879840182,-1279.198,0.00040009,2]
[321074929,1711879840194,-809.294,0.00040009,2]
[321074930,1711879840207,-436.692,0.00040009,2]
[321074931,1711879840218,-399.253,0.00040009,2]
[321074932,1711879840229,-150.741,0.00040009,2]
[321074933,1711879840242,-3009.744,0.00040009,2]
[321074934,1711879840253,-1417.448,0.00040009,2]
[321074935,1711879840265,-1149.49,0.00040009,2]
[321074936,1711879840276,-1641.957,0.00040009,2]
[321074937,1711879840285,-2445.932,0.00040009,2]
[321074938,1711879840296,-150.736,0.00040009,2]
[321074939,1711879840310,-217.0,0.00040009,2]
[321074940,1711879840323,-150.774,0.00040009,2]
[321074941,1711879840334,-409.25,0.00040316,2]
[321074942,1711879840349,-1773.14,0.00040426,2]
[321074943,1711879840362,-4570.645,0.00040509,2]
[321074944,1711879840374,-1316.05337391,0.000407,2]
[321074945,1711879840387,-157.31336066,0.0004077,30]
[321074946,1711879840398,-150.0,0.00040842,2]
[321074947,1711879840410,-1451.96674458,0.000409,15]
[321074948,1711879840422,-177.20903461,0.000409,2]
[321074949,1711879840433,-201.73690572,0.000409,2]
[321074950,1711879840445,-3609.12441338,0.000409,2]
[321074951,1711879840457,-246.72837867,0.00040986,7]
[321074952,1711879840467,-150.0,0.00040986,7]
[321074953,1711879840479,-150.0,0.00040986,7]
[321074954,1711879840491,-150.0,0.00040986,7]
[321074955,1711879840503,-150.0,0.00040986,7]
[321074956,1711879840517,-150.81,0.0004099,2]
[321074957,1711879840528,-155.033118,0.0004099,13]
[321074958,1711879840541,-290.42596992,0.0004099,2]
[321074959,1711879840550,-290.42596992,0.0004099,2]
[321074960,1711879840560,-290.42596992,0.0004099,2]
[321074961,1711879840570,-157.033118,0.00040991,12]
[321074962,1711879840580,-157.033118,0.00040992,13]
[321074963,1711879840590,-157.033118,0.00040993,12]
[321074964,1711879840601,-157.033118,0.00040994,13]
[321074965,1711879840612,-157.033118,0.00040995,11]
[321074966,1711879840623,-1896.0128605,0.00040995,2]
[321074967,1711879840635,-3822.9611726,0.00040995,2]
[321074968,1711879840645,-157.033118,0.00040996,12]
[321074969,1711879840656,-2000.0,0.00040997,2]
[321074970,1711879840667,-18961.37927273,0.00040997,2]
[321074971,1711879840677,-19000.0,0.00040997,2]
[321074972,1711879840688,-150.01,0.00040998,2]
[321074973,1711879840698,-652.02825311,0.00040998,2]
[321074974,1711879840708,-321.63644,0.00040999,7]
[321074975,1711879840720,-129422.85596349,0.00041,3]
[321074976,1711879840730,-3223.86058042,0.00041,4]
[321074977,1711879840741,-1135.02290063,0.00041,4]
[321074978,1711879840751,-196.31507067,0.00041,2]
[321074979,1711879840764,-418.76549995,0.00041,14]
[321074980,1711879840775,-1018.0,0.00041,2]
[321074981,1711879840785,-1004.0,0.00041,2]
[321074982,1711879840797,-5000.0,0.00041,7]
[321074983,1711879840809,-281.1,0.00041,30]
[321074984,1711879840819,-158.0,0.00041,49]
[321074985,1711879840831,-591469.50823055,0.00041,30]
[321074986,1711879840847,-2868.43341692,0.00041,30]
[321074987,1711879840860,-728.05842579,0.00041,30]
[321074988,1711879840873,-861.78488582,0.00041,30]
[321074989,1711879842830,-422132.40968438,0.00041,30]
[321074990,1711879842845,-11899.46937263,0.00041,30]
[321074991,1711879842861,-2899.08986414,0.00041,30]
[321074992,1711879842997,-2405.14960102,0.00041,30]
[321074993,1711879843010,-3717.56621638,0.00041,30]
[321074994,1711879843025,-2986.92251972,0.00041,30]
[321074995,1711879843103,-1227.724,0.00041,30]
[321074996,1711879843164,-40594.20846142,0.00041,30]
[321074997,1711879843177,-7532.22625956,0.00041,30]
[321075007,1711879845650,-500.39925283,0.00041,30]